Cogmind - Beta 10.2 @@@ ROGUE MODE // 2021.01.02 @ 20:53:08 Player: Mynzra Result: Destroyed by H-55 Commando with Gauss Rifle Performance ------------- Evolutions (2) 1000 Regions Visited (6) 1200 Robots Destroyed (42) 210 Value Destroyed (1310) 1310 Prototype IDs (23) 460 Alien Tech Used (0) 0 Bonus (300) 300 TOTAL SCORE: 4480 Bonus ------- Aligned with FarCom 300 Cogmind --------- Core Integrity 0/550 Matter 449/450 Energy 100/100 System Corruption 7% Temperature Cool (0) Movement Core (600) Ox11 Location -8/Materials Parts ------- > --- POWER (1) -------- (None) > --- PROPULSION (4) --- (None) > --- UTILITY (3) ------ Large Storage Unit Large Storage Unit Large Matter Pod > --- WEAPON (3) ------- (None) > --- INVENTORY (16) --- Light Ion Engine Light Ion Engine Light Deuterium Engine Light Nuclear Core Light Nuclear Core Small Storage Unit Large Storage Unit Large Storage Unit Large Matter Pod (150) Enhanced Optical Array Heavy EM Pulse Gun Heavy EM Pulse Gun Improved EM Pulse Cannon Advanced Beam Cannon Improved Light Cannon Peak State ------------ > --- POWER ------------ Nuclear Core > --- PROPULSION ------- Aluminum Leg Aluminum Leg Titanium Leg > --- UTILITY ---------- Large Storage Unit Large Storage Unit Large Matter Pod > --- WEAPON ----------- Gatling Laser Gatling Laser Latent Energy Streamer > --- INVENTORY -------- Light Ion Engine Light Ion Engine Light Nuclear Core Light Nuclear Core Small Storage Unit Large Matter Pod Enhanced Optical Array Improved EM Pulse Cannon Advanced Beam Cannon [Rating: 31] Favorites ----------- Power Ion Engine Engine Ion Engine Power Core Light Nuclear Core Propulsion Aluminum Leg Leg Aluminum Leg Utility Large Storage Unit Storage Large Storage Unit Weapon Light Assault Rifle Energy Gun Gatling Laser Energy Cannon Latent Energy Streamer Ballistic Gun Light Assault Rifle Ballistic Cannon Light Cannon Build | -11 -10 -9 -9 -9 -8 -8 ------- Run | Scr Mat Mat Min Exi Min Mat Slots Evolved 4 | . . 2 . . . 2 Power . | . . . . . . . Propulsion 2 | . . 2 . . . . Utility 1 | . . . . . . 1 Weapon 1 | . . . . . . 1 Parts Attached 52 | 6 4 4 13 . . 25 Power 5 | 1 . . 2 . . 2 Engine 3 | 1 . . 1 . . 1 Core 2 | . . . 1 . . 1 Reactor . | . . . . . . . Propulsion 15 | 2 . 3 6 . . 4 Treads . | . . . . . . . Leg 15 | 2 . 3 6 . . 4 Wheel . | . . . . . . . Hover . | . . . . . . . Flight . | . . . . . . . Utility 6 | 1 2 . . . . 3 Device . | . . . . . . . Storage 6 | 1 2 . . . . 3 Processor . | . . . . . . . Hackware . | . . . . . . . Protection . | . . . . . . . Artifact . | . . . . . . . Weapon 26 | 2 2 1 5 . . 16 Energy Gun 11 | 1 . . 1 . . 9 Energy Cannon 2 | . . . . . . 2 Ballistic Gun 11 | 1 1 1 4 . . 4 Ballistic Cannon 2 | . 1 . . . . 1 Launcher . | . . . . . . . Special Weapon . | . . . . . . . Impact Weapon . | . . . . . . . Slashing Weapon . | . . . . . . . Piercing Weapon . | . . . . . . . Special Melee Weapon . | . . . . . . . Unidentified Prototypes . | . . . . . . . Parts Lost 37 | . . 4 13 . . 20 Power 5 | . . . 2 . . 3 Propulsion 13 | . . 3 6 . . 4 Utility . | . . . . . . . Weapon 19 | . . 1 5 . . 13 Highest Loss Streak 10 | . . 4 10 . . 7 Average Slot Usage (%) 81 | . 98 97 81 66 66 77 Engine 4 | . 14 11 8 . . . Core 5 | . . . 1 11 11 7 Leg 22 | . 28 41 29 11 11 17 Storage 24 | . 26 22 22 22 22 27 Energy Gun 7 | . . . 1 11 11 12 Ballistic Gun 12 | . 25 10 17 11 11 7 Ballistic Cannon 2 | . 2 11 . . . 2 Naked Turns . | . . . . . . . Heaviest Build 60 | 12 41 42 42 41 41 60 Greatest Support 40 | 20 20 40 40 10 10 37 Greatest Overweight (x) 18 | 1 2 2 11 4 4 18 Average Overweight (x) 1 | . . 1 1 4 4 1 Largest Inventory Capacity 16 | 6 16 16 16 16 16 16 Average Capacity 15 | 5 15 16 16 16 16 16 Most Carried 16 | 1 14 13 12 6 6 16 Average Carried 9 | . 9 12 8 4 6 12 Final Capacity 16 | 6 16 16 16 16 16 16 Final Carried 15 | 1 14 12 4 6 6 15 Class Distribution -------------------- 79% | Mutant 16% | Skirmisher 4% | Scavenger-Mutant Dominant Class ---------------- Mutant | -10/Materials Mutant | -9/Materials Mutant | -9/Mines Mutant | -9/Exiles Mutant | -8/Mines Mutant | -8/Materials Resources | -11 -10 -9 -9 -9 -8 -8 ----------- Run | Scr Mat Mat Min Exi Min Mat Matter Collected 1515 | 186 318 218 212 . . 581 Remotely . | . . . . . . . Salvage Created 1314 | . 206 340 78 . . 690 Parts 62 | . 16 14 7 . . 25 Haulers Intercepted . | . . . . . . . Recyclers Shooed 1 | . 1 . . . . . Parts Field Recycled . | . . . . . . . Retrieved Matter . | . . . . . . . Parts Self-Destructed . | . . . . . . . Prevented . | . . . . . . . Kills | -11 -10 -9 -9 -9 -8 -8 ------- Run | Scr Mat Mat Min Exi Min Mat Combat Hostiles Destroyed 39 | . 6 9 8 . . 16 Guns 24 | . 4 2 7 . . 11 Cannons 11 | . 2 7 1 . . 1 AOE 3 | . . . . . . 3 Classes Destroyed 11 | . 3 3 2 . . 3 Worker 2 | . . . . . . 2 Builder 1 | . 1 . . . . . Recycler 1 | . . . . . . 1 Watcher 1 | . . 1 . . . . Swarmer 11 | . 2 . 4 . . 5 Grunt 19 | . 4 6 . . . 9 Brawler 1 | . . 1 . . . . Sentry 3 | . . 2 . . . 1 Demolisher 2 | . . . 2 . . . Hunter 1 | . . . . . . 1 Assembled 2 | . . . 2 . . . Best Kill Streak 5 | . 4 3 4 . . 5 Combat Bots Only 4 | . 4 3 4 . . 4 Max Kills in Single Turn 1 | . 1 1 1 . . 1 Gunslinging . | . . . . . . . Exploded 1 | . . . . . . 1 Melee . | . . . . . . . Uniques/NPCs Destroyed . | . . . . . . . Combat | -11 -10 -9 -9 -9 -8 -8 -------- Run | Scr Mat Mat Min Exi Min Mat Damage Taken 4356 | . 196 696 1289 . . 2175 Core 946 | . 42 148 196 . . 560 Absorbed by Shields . | . . . . . . . Core Remaining (%) 65 | 100 83 . . . 14 . Volleys Fired 153 | . 30 30 34 . . 59 Largest 3 | . 2 2 2 . . 3 Hottest 185 | . 55 55 60 . . 185 Shots Fired 307 | . 60 58 56 . . 133 Gun 252 | . 49 28 52 . . 123 Cannon 55 | . 11 30 4 . . 10 Launcher . | . . . . . . . Special . | . . . . . . . Kinetic 229 | . 60 58 53 . . 58 Thermal 64 | . . . . . . 64 Explosive . | . . . . . . . Electromagnetic 14 | . . . 3 . . 11 Robot Hit Streak 32 | . 10 17 6 . . 32 Robot Miss Streak 6 | . 6 2 4 . . 5 Penetration Max . | . . . . . . . Secondary Targets 2 | . . . 1 . . 1 Max Gunslinging Chain 1 | . . . 1 . . 1 Shots Hit Robots 205 | . 34 48 30 . . 93 Core Hits 83 | . 15 20 12 . . 36 Critical Hits 3 | . 1 1 . . . 1 Critical Kills 1 | . 1 . . . . . Critical Parts Destroyed 1 | . . . . . . 1 Melee Attacks . | . . . . . . . Impact . | . . . . . . . Slashing . | . . . . . . . Piercing . | . . . . . . . Sneak Attacks . | . . . . . . . Combat Hostiles . | . . . . . . . Follow-up Attacks . | . . . . . . . Damage Inflicted 2967 | . 366 595 380 . . 1626 Guns 1844 | . 226 209 324 . . 1085 Cannons 642 | . 140 386 56 . . 60 Explosions 457 | . . . . . . 457 Melee . | . . . . . . . Ramming 24 | . . . . . . 24 Kinetic 1640 | . 366 595 380 . . 299 Thermal 825 | . . . . . . 825 Explosive . | . . . . . . . Electromagnetic 478 | . . . . . . 478 Impact . | . . . . . . . Slashing . | . . . . . . . Piercing . | . . . . . . . Highest Corruption 7 | . . . 1 1 1 7 Average Corruption 2 | . . . 1 1 1 4 Corruption Purged . | . . . . . . . Effects 32 | . . . 3 6 1 22 Message Errors 9 | . . . . 4 . 5 Matter Fused 7 | . . . . . . 7 Heat Flow Errors 4 | . . . . . . 4 Energy Discharges 3 | . . . . 1 . 2 Data Loss (minor) 3 | . . . . 1 1 1 Targeting Errors 5 | . . . 3 . . 2 Weapon Failures 1 | . . . . . . 1 Overload Shots . | . . . . . . . Overflow Damage 17 | . . . . . . 17 Projectiles 1 | . . . . . . 1 Explosions 16 | . . . . . . 16 Melee . | . . . . . . . Knockbacks 5 | . 2 1 1 . . 1 Impact 1 | . . . . . . 1 Kinetic 4 | . 2 1 1 . . . Secondary . | . . . . . . . Self-Inflicted Damage 109 | . . . . . . 109 Shots 2 | . . . . . . 2 Rammed 1 | . 1 . . . . . Targets Rammed 3 | . 1 . 1 . . 1 Kicked 2 | . . . 1 . . 1 Crushed . | . . . . . . . Highest Temperature 615 | . 28 25 . . . 615 Average Temperature 141 | . 11 9 . . . 185 Received Heat Transfer 975 | . 81 318 . . . 576 Effects 19 | . . . . . . 19 Shutdowns 2 | . . . . . . 2 Energy Bleed 2 | . . . . . . 2 Interference 1 | . . . . . . 1 Matter Decay 3 | . . . . . . 3 Short Circuit 1 | . . . . . . 1 Damage (minor) 1 | . . . . . . 1 Damage (major) 8 | . . . . . . 8 Damage (core) 1 | . . . . . . 1 Siege Activations . | . . . . . . . Robots Corrupted 1 | . . . . . . 1 Combat Hostiles 1 | . . . . . . 1 Parts Fried 2 | . . . . . . 2 Impact Corruptions . | . . . . . . . Robots Melted . | . . . . . . . Combat Hostiles . | . . . . . . . Parts Melted 3 | . . . . . . 3 Heat Transferred 1808 | . . . . . . 1808 Parts Sabotaged . | . . . . . . . Parts Stolen . | . . . . . . . Parts Stripped . | . . . . . . . Power Chain Reactions 1 | . . . . . . 1 Missiles Intercepted . | . . . . . . . Latent Energy Used 367 | . . . . . . 367 LE Corruption 6 | . . . . . . 6 Alert | -11 -10 -9 -9 -9 -8 -8 ------- Run | Scr Mat Mat Min Exi Min Mat Peak Influence 247 | . 100 247 196 . . 137 Initial 96 | . . . 96 . . . Average 59 | . 19 98 124 . . 42 Maximum Alert Level 1 | . . 1 . . . . Low Security (%) 99 | 100 100 93 100 . 100 100 Level 1 . | . . 6 . . . . Level 2 . | . . . . . . . Level 3 . | . . . . . . . Level 4 . | . . . . . . . Level 5 . | . . . . . . . High Security . | . . . . . . . Max Security . | . . . . . . . Squads Dispatched 8 | . 3 . 1 . . 4 Investigation 4 | . 1 . 1 . . 2 Extermination . | . . . . . . . Reinforcement 4 | . 2 . . . . 2 Assault . | . . . . . . . Garrison . | . . . . . . . Intercept . | . . . . . . . Construction Impeded 1 | . . . . . . 1 Haulers Reinforced . | . . . . . . . Stealth | -11 -10 -9 -9 -9 -8 -8 --------- Run | Scr Mat Mat Min Exi Min Mat Distress Signals 6 | . 2 1 . . . 3 Communications Jammed . | . . . . . . . Distress Signals . | . . . . . . . Times Spotted 72 | . 17 12 12 . . 31 Peak Tracking Total 11 | . 6 4 11 . . 8 Tactical Retreats 4 | . . 1 1 . . 2 Traps | -11 -10 -9 -9 -9 -8 -8 ------- Run | Scr Mat Mat Min Exi Min Mat Traps Triggered 3 | . . . . . . 3 Indirectly . | . . . . . . . Trap Hack Attempts . | . . . . . . . Triggered . | . . . . . . . Disarmed . | . . . . . . . Reprogrammed . | . . . . . . . Reused . | . . . . . . . Traps Extracted . | . . . . . . . Installed . | . . . . . . . Triggered . | . . . . . . . Machines | -11 -10 -9 -9 -9 -8 -8 ---------- Run | Scr Mat Mat Min Exi Min Mat Machines Disabled 5 | . . . 2 . . 3 Max in Single Turn 2 | . . . 1 . . 2 Machines Sabotaged . | . . . . . . . Garrisons Compromised . | . . . . . . . Overloaded Fab Kills . | . . . . . . . Fab Network Shutdowns . | . . . . . . . Hacking | -11 -10 -9 -9 -9 -8 -8 --------- Run | Scr Mat Mat Min Exi Min Mat Machines Accessed 12 | . 4 1 1 3 . 3 Terminals 8 | . 4 1 . . . 3 Fabricators . | . . . . . . . Repair Stations . | . . . . . . . Recycling Units . | . . . . . . . Scanalyzers . | . . . . . . . Garrison Access . | . . . . . . . Total Hacks 36 | . 8 2 1 18 . 7 Successful 29 | . 5 2 1 18 . 3 Failed 7 | . 3 . . . . 4 Catastrophic . | . . . . . . . Database Lockouts . | . . . . . . . Manual 18 | . 8 2 . 1 . 7 Terminals 17 | . 8 2 . . . 7 Fabricators . | . . . . . . . Repair Stations . | . . . . . . . Recycling Units . | . . . . . . . Scanalyzers . | . . . . . . . Garrison Access . | . . . . . . . Terminal Hacks 24 | . 2 1 1 18 . 2 Record 17 | . . . . 17 . . Open Door 1 | . . . 1 . . . Unreport Threat 5 | . 2 1 . . . 2 EX-Prototype ID Bank 1 | . . . . 1 . . Fabricator Hacks . | . . . . . . . Repair Station Hacks . | . . . . . . . Recycling Unit Hacks . | . . . . . . . Scanalyzer . | . . . . . . . Garrison Access Hacks . | . . . . . . . Unauthorized Hacks 5 | . 3 1 . . . 1 Terminals 5 | . 3 1 . . . 1 Botnet 5 | . 3 1 . . . 1 Fabricators . | . . . . . . . Repair Stations . | . . . . . . . Recycling Units . | . . . . . . . Scanalyzers . | . . . . . . . Garrison Access . | . . . . . . . Data Cores Recovered . | . . . . . . . Used . | . . . . . . . Hacking Detections 6 | . 4 . . . . 2 Full Trace Events 1 | . 1 . . . . . Feedback Events . | . . . . . . . Feedback Blocked . | . . . . . . . Robot Schematics Acquired . | . . . . . . . Robots Built . | . . . . . . . Matter . | . . . . . . . Time . | . . . . . . . Total Robot Build Rating . | . . . . . . . Part Schematics Acquired . | . . . . . . . Parts Built . | . . . . . . . Matter . | . . . . . . . Time . | . . . . . . . Total Part Build Rating . | . . . . . . . Parts Repaired . | . . . . . . . Time . | . . . . . . . Parts Recycled . | . . . . . . . Recycled Matter . | . . . . . . . Retrieved Matter . | . . . . . . . Retrieved Components . | . . . . . . . Parts Scanalyzed . | . . . . . . . Part Schematics Acquired . | . . . . . . . Parts Damaged . | . . . . . . . Bothacking | -11 -10 -9 -9 -9 -8 -8 ------------ Run | Scr Mat Mat Min Exi Min Mat Used RIF Installer . | . . . . . . . Robots Hacked . | . . . . . . . Non-combat . | . . . . . . . Combat . | . . . . . . . Robot Hacks Applied . | . . . . . . . Relay Couplers Released . | . . . . . . . Robots Rewired . | . . . . . . . Allies Hacked . | . . . . . . . Hacks Repelled . | . . . . . . . Allies | -11 -10 -9 -9 -9 -8 -8 -------- Run | Scr Mat Mat Min Exi Min Mat Total Allies . | . . . . . . . Largest Group . | . . . . . . . Highest-Rated Group . | . . . . . . . Highest-Rated Ally . | . . . . . . . Total Orders . | . . . . . . . Ally Attacks . | . . . . . . . Total Damage . | . . . . . . . Kills . | . . . . . . . Allies Corrupted . | . . . . . . . Allies Melted . | . . . . . . . Intel | -11 -10 -9 -9 -9 -8 -8 ------- Run | Scr Mat Mat Min Exi Min Mat Robot Analysis Total . | . . . . . . . Derelict Logs Recovered . | . . . . . . . Drone Launches . | . . . . . . . Drone Recoveries . | . . . . . . . Exploration | -11 -10 -9 -9 -9 -8 -8 ------------- Run | Scr Mat Mat Min Exi Min Mat Turns Passed 3892 | 46 607 392 604 683 44 1516 Spaces Moved 1694 | 30 338 167 311 284 19 545 Core 14 | 2 . . 7 . . 5 Treads . | . . . . . . . Legs 1680 | 28 338 167 304 284 19 540 Wheels . | . . . . . . . Hover . | . . . . . . . Flight . | . . . . . . . Fastest Speed 50 | 50 120 150 120 240 240 153 Average Speed 175 | 122 149 151 159 240 240 176 Slowest Speed 950 | 150 180 180 600 240 240 950 Overloaded Moves . | . . . . . . . Propulsion Burnouts . | . . . . . . . Robots Hopped . | . . . . . . . Cave-ins Triggered . | . . . . . . . Exploration Rate (%) 34 | 3 58 21 50 62 9 38 Regions Visited 6 Branch Regions 3 Pre-discovered Areas . | . . . . . . . Known Exits Taken . | . . . . . . . Unknown Exits Taken 6 | 1 1 1 1 1 1 . Scrap Searched 1 | . . . 1 . . . Spaces Dug . | . . . . . . . Terrain Destroyed 37 | . . . . . . 37 Melee . | . . . . . . . Projectile 2 | . . . . . . 2 AOE 35 | . . . . . . 35 Terrain Rammed . | . . . . . . . Walls Destroyed . | . . . . . . . Machines Disabled . | . . . . . . . Actions | -11 -10 -9 -9 -9 -8 -8 --------- Run | Scr Mat Mat Min Exi Min Mat Total 2327 | 36 388 253 366 287 18 979 Wait 380 | . 4 51 . . . 325 Move 1688 | 29 337 166 310 283 18 545 Hop . | . . . . . . . Pick Up 42 | 1 11 2 2 3 . 23 Fast Attach 14 | 6 2 . 1 . . 5 Attach 31 | . . 4 11 . . 16 Detach 1 | . 1 . . . . . Swap 7 | . 2 . 1 . . 4 Drop 2 | . . . . 1 . 1 Fire 153 | . 30 30 34 . . 59 Melee . | . . . . . . . Ram . | . . . . . . . Kick 3 | . 1 . 1 . . 1 Crush . | . . . . . . . Escape Stasis . | . . . . . . . Rewire 6 | . . . 6 . . . Trap . | . . . . . . . Miscellaneous . | . . . . . . . Route ------- -11/Scrapyard -10/Materials -9/Materials -9/Mines -9/Exiles -8/Mines -8/Materials (discovered 1 exit: [*Fac]) History --------- Turn | Location | Event 9 | -11/Scrapyard | Discovered new exit (range 16) 47 | -11/Scrapyard | Entered Materials 316 | -10/Materials | Build established: Mutant 604 | -10/Materials | Discovered new exit (range 9) 654 | -10/Materials | Entered another Materials area 654 | -9/Materials | Evolved 2 slots: Propulsion x2 984 | -9/Materials | Discovered new exit (range 6) 1036 | -9/Materials | Lost 4 parts (3n1w) 1046 | -9/Materials | Entered Mines 1101 | -9/Mines | Met a Derelict bent on vengeance 1113 | -9/Mines | Assembled infested the area 1137 | -9/Mines | Core integrity fell below 50% 1300 | -9/Mines | Met a Derelict shopkeep closing up shop 1545 | -9/Mines | Core integrity fell below 20% 1572 | -9/Mines | Lost 10 parts (2p4n4w) 1638 | -9/Mines | Discovered new exit (range 5) 1650 | -9/Mines | Entered Exiles 1708 | -9/Exiles | Met 8R-AWN 1749 | -9/Exiles | Met EX-HEX 1816 | -9/Exiles | Met EX-BIN 1864 | -9/Exiles | Aligned with FarCom system 1866 | -9/Exiles | Given EX-Vault access code 1998 | -9/Exiles | Opened EX-Vault 2020 | -9/Exiles | Found Latent Energy Streamer 2071 | -9/Exiles | Warned to stay clear of 0b10 Research branches 2139 | -9/Exiles | Met EX-DEC 2314 | -9/Exiles | Discovered new exit (range 10) 2333 | -9/Exiles | Left Exiles lab with Latent Energy Streamer 2333 | -9/Exiles | Entered Mines 2357 | -8/Mines | Discovered new exit (range 8) 2377 | -8/Mines | Entered Materials 2377 | -8/Materials | Evolved 2 slots: Utility x1, Weapon x1 2791 | -8/Materials | Lost 7 parts (1p6w) 3348 | -8/Materials | Core integrity fell below 50% 3380 | -8/Materials | Lost 3 parts (1n2w) 3834 | -8/Materials | Discovered new exit (range 15) 3856 | -8/Materials | Core integrity fell below 20% 3893 | -8/Materials | Destroyed by H-55 Commando with Gauss Rifle Last Messages --------------- 03851_ K-01 Serf collects debris. 03854_ Penetrated by Slug. 03854_ Aluminum Leg destroyed. 03855_ U-05 Engineer builds a Door. 03857_ System corrupted: Heat flow error (+150). 03860_ Penetrated by Slug. 03860_ Gatling Laser destroyed. 03862_ U-05 Engineer builds a Door. 03863_ Penetrated by Slug. 03863_ Nuclear Core destroyed. 03863_ U-05 Engineer destroyed. 03866_ Penetrated by Slug. 03869_ Slug penetrates U-05 Engineer. 03869_ R-06 Scavenger collects Structural Scanner. 03872_ System corrupted: Matter fused (-6). 03872_ Penetrated by Slug. 03873_ R-06 Scavenger collects Terrain Scan Processor. 03881_ Latent Energy Streamer destroyed. 03883_ Slug penetrates Wall. 03886_ Penetrated by Slug. Map ----- +----------------------------------------------------+ | | | | | | | | | | | | | | | ?????????????????????????????????????????????????? | | ?????????????????????????????????????????????????? | | ?????????????????????????????????????????????????? | | ?????????????????????????????????????????????????? | | ?????????????????????????????????########????????? | | ?????????????????????????????????# *#????????# | | ?????????????????????????????????# ########## | | ?????????????????????????????????# + | | ?????????????????????????????????# ! ### | | ?????????????????????????????????#! #?# | | ???????????????????????????#####?# #?# | | ???????????????????????????# ###+##+##### | | ???????????????????????????# T | | ???????????????????????????# ######### # | | ?????????????######????#########???????# # | | ?????????????# = ??# #???????????# + | | ?????????????# ?# < #????????#### ####### | | ?????????????# = # #####????#! !#?????# | | ?????????????# ; @ !!#????#! !#?????# | | ?????????????# """ #u !!#????##! !##?????# | | ????????????????? ????# !!#?????######??????# | | ???????????????????????# !!#?????????????????# | | ???????????????????????# !!#?????????????????# | | ????????????????###????#!= !!#?????????????????? | | ????????????????#[ ??#%*Y######????????????????? | | ????????????????# T?# ########??????????????? | | ????????????????# # #??????????????? | | ????????????????# /uhu #??????????????? | | ????????????????# # #??????????????? | | ????????????????# """ # % #??????????????? | | ????????????????# """?# % #??????????????? | | ????????????????# ""??# % ################ | | ????????????????# ???# | | ?????????????????? ???# %%% | | ??????????????????/????# """ | | ???????????????????????# """ ############### | | ???????????????????????# w #??????????# | | ???????????????????????# #??????????# | | ???????????????????????# #??????????# | | ??????????????????????## #???########] | | ??????????????? #???# # | | ?????????????????###############/#####?# # | | ????????????????????????????# [ ### # ! | +----------------------------------------------------+ Best States ------------- Heat Dissipation 31 Energy Generation 14 Energy Capacity 250 Matter Stores 450 Matter Capacity 450 Sight Range 16 Terrain Scan Density 10 Evasion (%) 40 Item Schematics ----------------- None Robot Schematics ------------------ None Fabricated ------------ Nothing Alien Tech Used ----------------- None Achievements -------------- None Challenges ------------ None Game ------ Seed HeatDisruptionMegatreads Manual? 0 Play Time 00:32:17 Cumulative 7.8 hours Start 2021.01.02 @ 02:47:23 End 2021.01.02 @ 20:53:08 Sessions 2 Manual Loads 0 Difficulty Rogue Special Mode None Game No. 12 Rogue 5 Adventurer 4 Explorer 3 Win Type - Total 0 Types 0/0/0/0/0/0/0/0/0 Lore% 16 Gallery% 14 Achievement% 34 Wizard Run 0 Options --------- ASCII 0 Keyboard 0 Movement Mouse Keybinds 0 Fullscreen 2 Font 18/SmallcapsGlow Map View 76x50 Tactical HUD 1 Map Filters NONE Filters NONE Steam 1 RUN: 428d5dbd-6527-446c-9e1d-6ef9f8ef0ba9